bitfinex/quotes_ETHUSD_20250802
["timestamp","ask_amount","ask_price","bid_price","bid_amount"]
[1754157180862,6.171,3423.1,3422.5,0.9530184]
[1754157181066,6.171,3423.1,3422.6,0.9238]
[1754157181244,30.0,3424.3,3422.7,0.9238]
[1754157181409,30.0,3424.1,3422.8,0.4721]
[1754157181611,30.0,3423.9,3422.9,0.48091499]
[1754157181922,30.0,3423.7,3422.5,0.4721]
[1754157182146,30.0,3423.5,3422.5,0.4721]
[1754157182515,3.0,3423.7,3422.5,0.4721]
[1754157182852,3.0,3423.9,3422.5,0.4721]
[1754157182853,3.0,3423.4,3422.5,0.4721]
[1754157183036,30.0,3422.4,3422.0,7.9721]
[1754157183247,3.0,3423.9,3422.1,0.9238]
[1754157183454,3.0,3423.6,3422.1,0.9238]
[1754157183614,30.0,3423.7,3422.0,7.5]
[1754157183615,3.0,3423.2,3422.2,0.4721]
[1754157183817,3.0,3423.2,3422.0,7.5]
[1754157183818,30.0,3422.9,3422.0,7.5]
[1754157184059,30.0,3422.7,3422.0,7.5]
[1754157184283,30.0,3422.5,3422.1,0.4721]
[1754157184470,0.29281,3423.7,3422.0,7.9517]
[1754157184471,6.129,3422.4,3422.2,0.9238]
[1754157184620,30.0,3423.6,3422.0,7.5]
[1754157184811,30.0,3423.4,3422.1,0.02922182]
[1754157185041,30.0,3423.6,3422.0,7.5]
[1754157185227,30.0,3423.6,3422.2,0.9238]
[1754157185430,0.15222816,3425.5,3423.7,2.19798991]
[1754157185639,5.15238062,3426.8,3425.1,8.86101422]
[1754157185870,0.1,3426.8,3425.4,0.1456]
[1754157186166,0.1,3426.8,3423.8,8.86101422]
[1754157186167,30.0,3425.7,3423.8,8.86101422]
[1754157186353,0.1,3426.0,3423.8,8.86101422]
[1754157186555,6.274,3425.9,3423.8,8.86101422]
[1754157186738,0.1,3425.3,3423.8,8.86101422]
[1754157186941,6.332,3425.2,3422.3,6.274]
[1754157187132,6.332,3425.2,3422.6,0.877959]
[1754157187133,30.0,3425.0,3422.6,0.877959]
[1754157187333,0.1,3424.8,3422.6,8.86101422]
[1754157187532,0.1,3424.6,3422.7,0.55]
[1754157187732,0.02922182,3424.5,3422.6,8.86101422]
[1754157188098,0.02922182,3424.5,3421.4,6.331]
[1754157188099,30.0,3424.3,3422.0,8.86101422]
[1754157188281,30.0,3424.1,3422.0,8.86101422]
[1754157188485,0.1,3423.8,3422.0,8.86101422]
[1754157188799,0.1,3423.6,3422.0,8.86101422]
[1754157189003,30.0,3423.5,3422.0,8.86101422]
[1754157189200,0.4639,3423.8,3421.9,8.69647672]
[1754157189360,0.1,3424.2,3422.5,8.69647672]
[1754157189566,0.1,3424.2,3422.1,0.02922182]
[1754157189567,0.1,3425.1,3423.2,8.69647672]
[1754157189768,6.54093281,3427.7,3423.9,0.55]
[1754157189769,30.1,3425.6,3423.9,0.55]
[1754157190099,7.9796,3425.7,3424.1,0.55]
[1754157190100,7.024,3425.7,3424.1,0.55]
[1754157190305,7.024,3425.7,3425.1,8.69647672]
[1754157190602,6.318,3425.9,3425.3,0.55]
[1754157190804,6.317,3425.9,3425.5,0.55]
[1754157191103,7.025,3427.1,3425.6,0.02919196]
[1754157191304,7.025,3427.1,3425.7,9.24647672]
[1754157191802,0.001,3427.2,3425.8,0.57919026]
[1754157191962,0.001,3427.2,3426.3,0.55]
[1754157192360,6.3,3427.2,3425.6,8.67473976]
[1754157192613,0.1,3426.8,3425.0,8.67473976]
[1754157192779,0.02922182,3426.7,3424.2,9.292]
[1754157192978,7.2496,3426.6,3424.2,9.292]
[1754157193204,0.4917,3426.5,3424.6,8.67473976]
[1754157193407,6.291,3426.5,3424.8,0.55]
[1754157193703,7.023,3426.8,3425.3,0.55]
[1754157193866,7.023,3426.8,3424.2,9.292]
[1754157193867,7.023,3426.8,3426.1,0.55]
[1754157194072,7.023,3426.8,3425.4,8.67473976]
[1754157194305,6.29,3426.7,3425.5,0.55]
[1754157194603,7.023,3426.8,3425.5,0.55]
[1754157194803,0.001,3427.2,3426.2,0.55]
[1754157195006,0.001,3427.2,3426.4,0.55]
[1754157195220,0.001,3427.2,3425.3,3.0]
[1754157195509,0.001,3427.2,3426.0,0.55]
[1754157195727,0.001,3427.2,3425.9,8.67473976]
[1754157196100,0.001,3427.2,3425.6,0.55]
[1754157196301,0.1,3426.6,3424.3,6.272]
[1754157196502,0.1,3426.2,3422.8,0.22247407]
[1754157196813,0.1,3425.2,3422.9,8.67473976]
[1754157196991,7.2286,3425.1,3423.5,8.67473976]
[1754157197192,7.2286,3425.1,3423.2,8.67473976]
[1754157197415,6.267,3425.0,3423.3,0.55]
[1754157197620,0.9556,3425.1,3423.4,0.02921072]
[1754157197927,6.261,3425.0,3423.4,0.1464]
[1754157198426,6.261,3425.0,3423.3,0.02921157]
[1754157198613,1.0556,3424.9,3423.3,0.02921157]
[1754157199188,6.25,3424.8,3423.3,0.02921157]
[1754157199622,1.0556,3424.9,3423.3,0.02921157]
[1754157199823,6.24,3424.8,3423.8,0.02920731]
[1754157200027,0.9556,3424.8,3423.8,0.02920731]
[1754157200189,0.1,3424.5,3423.0,8.82113976]
[1754157200393,0.1,3424.3,3423.0,8.82113976]
[1754157200639,0.1,3424.3,3423.0,8.67473976]
[1754157201256,0.1,3424.1,3423.1,0.02921328]
[1754157201460,0.1,3424.1,3422.6,8.83931363]
[1754157201606,0.9556,3424.1,3422.7,0.5792167]
[1754157201805,0.9649,3424.5,3422.7,0.5792167]
[1754157202011,0.5707,3424.1,3422.7,0.55]
[1754157202348,0.9649,3424.0,3422.0,8.69291363]
[1754157202508,0.9649,3424.0,3423.2,8.69291363]
[1754157202858,3.9649,3424.6,3423.3,0.02921157]
[1754157203012,3.0,3424.6,3423.8,0.02920731]
[1754157203220,3.0,3424.6,3423.2,8.69291363]
[1754157203221,0.9649,3424.8,3423.9,0.02920646]
[1754157203410,3.9649,3424.8,3423.9,0.02920646]
[1754157203616,7.1649,3424.8,3423.2,8.83931363]
[1754157203859,0.1,3424.5,3422.7,0.55]
[1754157204154,0.1,3425.1,3424.0,8.69291363]
[1754157204458,0.001,3425.2,3424.2,0.55]
[1754157204608,0.001,3425.2,3424.7,8.69291363]
[1754157204811,0.001,3425.2,3424.9,0.55]
[1754157205037,0.001,3425.2,3425.0,0.02919708]
[1754157205258,0.001,3425.2,3425.1,0.55]
[1754157205412,0.1,3426.9,3425.1,0.55]
[1754157205413,0.1,3427.3,3425.1,0.6956]
[1754157205613,0.9649,3427.8,3426.5,8.69291363]
[1754157205818,0.9649,3427.8,3426.6,0.02918344]
[1754157206222,0.1,3428.7,3426.7,0.55]
[1754157206417,0.4942,3428.6,3427.1,0.55]
[1754157206620,0.1,3427.8,3426.0,7.023]
[1754157206920,0.9649,3427.7,3426.3,0.55]
[1754157207147,0.4707,3428.5,3426.6,8.69291363]
[1754157207345,0.4942,3428.3,3426.9,0.55]
[1754157207560,0.4942,3428.3,3426.6,8.69291363]
[1754157207561,0.1,3427.8,3426.6,8.69291363]
[1754157207773,0.1,3427.6,3426.6,8.69291363]
[1754157208055,11.60777611,3430.7,3426.6,8.69291363]
[1754157208056,0.9649,3427.8,3426.6,8.69291363]
[1754157208346,0.5707,3427.8,3426.8,0.55]
[1754157208560,0.5707,3427.8,3426.6,8.69291363]
[1754157208714,0.4707,3427.8,3426.7,0.55]
[1754157208915,0.5707,3427.8,3426.7,0.55]
[1754157209131,0.5707,3427.8,3426.6,8.69291363]
[1754157209132,0.1,3427.8,3426.6,8.69291363]
[1754157209328,0.1,3428.2,3426.7,0.02918259]
[1754157209547,6.163,3428.5,3426.0,22.95711068]
[1754157209548,0.1,3427.6,3426.0,15.71591363]
[1754157209713,0.4707,3427.5,3426.1,0.0291877]
[1754157209913,0.1,3427.0,3426.0,8.69291363]
[1754157210112,0.1,3426.8,3425.4,8.69291363]
[1754157210550,0.1,3426.8,3425.9,0.02918941]
[1754157210990,0.1,3426.8,3425.4,8.69291363]
[1754157211151,0.4942,3426.9,3425.9,0.02918941]
[1754157211348,0.1,3426.8,3425.9,0.02918941]
[1754157211752,0.4942,3427.5,3426.1,0.55]
[1754157211953,0.1,3427.0,3425.3,0.1456]
[1754157212186,0.1,3427.0,3425.4,0.02919367]
[1754157212187,0.9649,3426.9,3425.4,0.02919367]
[1754157212375,0.1,3426.6,3425.4,0.02919367]
[1754157212572,1.0649,3426.9,3425.4,0.02919367]
[1754157212787,1.0649,3426.9,3425.9,8.69291363]
[1754157213503,1.0649,3426.9,3425.3,8.69291363]
[1754157213678,0.1,3426.3,3424.8,8.69291363]
[1754157214004,0.9649,3426.2,3424.8,8.69291363]
[1754157214378,0.9649,3426.2,3424.9,0.02919793]
[1754157214612,1.0649,3426.2,3424.9,0.02919793]
[1754157214916,0.4707,3426.2,3425.4,8.69291363]
[1754157215275,0.1,3426.3,3425.4,8.69291363]
[1754157215483,0.4707,3426.7,3425.9,0.55]
[1754157215684,0.1,3427.0,3426.0,8.69291363]
[1754157216411,0.9649,3427.4,3426.1,0.0291877]
[1754157216777,0.4707,3427.4,3426.1,0.0291877]
[1754157217313,0.4707,3427.4,3426.2,0.55]
[1754157217483,0.5707,3427.4,3426.0,8.83851363]
[1754157217672,0.4942,3427.3,3426.0,8.83851363]
[1754157217874,0.1,3427.1,3426.0,8.83851363]
[1754157218400,0.1,3427.1,3426.0,8.69291363]
[1754157218816,0.4707,3427.2,3426.1,0.5791877]
[1754157219017,0.1,3427.1,3426.1,0.7247877]
[1754157219217,0.4707,3427.2,3426.1,0.7247877]
[1754157219632,0.4707,3427.2,3426.1,0.1747877]
[1754157219792,0.4707,3427.2,3426.1,0.7247877]
[1754157219995,0.5707,3427.2,3426.1,0.6956]
[1754157220399,0.5707,3427.2,3426.0,8.69291363]
[1754157220596,0.1,3427.0,3425.8,0.1456]
[1754157220821,0.4707,3426.9,3425.4,8.69291363]
[1754157221010,0.4707,3426.9,3425.5,0.17479281]
[1754157221220,0.4942,3427.1,3426.1,8.69291363]
[1754157221398,0.4707,3427.4,3426.2,0.02918685]
[1754157221600,0.4707,3428.0,3426.7,8.69291363]
[1754157221799,0.4942,3427.9,3426.8,0.02918174]
[1754157222308,0.5942,3427.9,3426.7,8.69291363]
[1754157222522,0.5942,3427.9,3426.0,0.55]
[1754157222523,0.1,3427.6,3426.1,8.69291363]
[1754157222744,0.4707,3427.8,3426.0,0.1456]
[1754157222745,0.1,3427.1,3426.0,6.081]
[1754157222900,0.9649,3427.0,3425.6,0.1456]
[1754157223095,0.9649,3426.9,3425.5,8.69291363]
[1754157223394,2.91630299,3429.0,3425.5,8.69291363]
[1754157223395,0.1,3426.5,3425.6,0.02919196]
[1754157223595,0.9649,3426.8,3425.6,0.02919196]
[1754157224033,0.4707,3427.1,3425.6,0.02919196]
[1754157224201,0.05,3427.0,3425.6,0.02919196]
[1754157224532,0.05,3427.0,3425.7,0.55]
[1754157224733,0.05,3427.0,3425.8,0.02919026]
[1754157225140,3.0,3428.0,3424.9,8.69291363]
[1754157225141,0.05,3426.7,3424.9,8.69291363]
[1754157225323,0.05,3426.5,3425.0,6.08319708]
[1754157225525,0.9649,3426.4,3425.0,6.054]
[1754157225841,0.05,3426.2,3425.0,6.054]
[1754157226040,0.05,3426.2,3423.7,0.004]
[1754157226041,0.05,3426.0,3424.7,6.045]
[1754157226341,0.05,3425.8,3424.8,0.02919878]
[1754157226540,0.05,3425.8,3424.7,6.045]
[1754157226742,0.9649,3425.9,3424.8,0.02919878]
[1754157227045,1.0149,3425.9,3425.2,8.69291363]
[1754157227245,0.9649,3425.9,3424.9,8.69291363]
[1754157227553,0.05,3427.4,3425.9,0.55]
[1754157227703,0.05,3427.0,3426.0,6.039]
[1754157227899,0.9649,3427.3,3426.5,8.69291363]
[1754157228146,0.9649,3427.3,3426.6,0.02918344]
[1754157228440,0.05,3427.4,3426.6,0.02918344]
[1754157228441,0.5442,3427.7,3426.6,0.02918344]
[1754157228940,0.05,3427.4,3426.5,8.69291363]
[1754157229150,0.05,3427.4,3426.6,0.02918344]
[1754157229314,0.4942,3427.3,3426.6,0.02918344]
[1754157229639,0.4942,3427.3,3426.5,8.69291363]
[1754157229998,0.4942,3427.3,3426.2,6.1936]
[1754157229999,0.4707,3427.2,3426.2,6.1936]
[1754157230310,0.05,3427.1,3426.2,6.048]
[1754157230510,0.05,3427.1,3426.3,0.029186]
[1754157231117,0.4707,3427.2,3426.3,0.029186]
[1754157232705,0.05,3426.8,3426.3,0.029186]
[1754157232900,1.021,3426.7,3425.8,0.02919026]
[1754157233128,1.021,3426.7,3425.7,8.69291363]
[1754157233739,1.021,3426.7,3425.6,8.69291363]
[1754157234039,1.021,3426.7,3425.7,6.016]
[1754157234538,1.021,3427.2,3426.3,8.69291363]
[1754157234940,1.021,3427.2,3426.4,0.02918515]
[1754157235126,1.021,3427.2,3426.3,14.69291363]
[1754157235127,0.4276,3427.2,3426.3,14.69291363]
[1754157235303,0.05,3426.9,3426.3,14.69291363]
[1754157236028,1.021,3426.8,3425.7,8.69291363]
[1754157236215,1.021,3426.8,3425.8,6.02019026]
[1754157236415,0.05,3426.6,3425.8,5.991]
[1754157236615,1.021,3426.5,3425.8,5.991]
[1754157237504,0.05,3426.6,3425.1,8.69291363]
[1754157237743,1.071,3426.4,3425.2,5.977]
[1754157237907,1.021,3426.3,3425.2,5.977]
[1754157238108,1.021,3426.2,3425.2,5.977]
[1754157238530,0.05,3426.0,3425.2,5.977]
[1754157239805,0.05,3426.0,3425.3,5.953]
[1754157240310,0.05,3426.6,3425.7,8.69291363]
[1754157240525,0.05,3426.8,3426.3,8.69291363]
[1754157240723,0.001,3427.9,3426.4,5.96818515]
[1754157240973,0.001,3427.9,3427.3,8.69291363]
[1754157241247,0.001,3427.9,3427.4,0.02917663]
[1754157241653,1.021,3427.8,3427.4,0.02917663]
[1754157241850,0.001,3427.9,3425.9,11.69291363]
[1754157241851,1.021,3427.7,3425.9,11.69291363]
[1754157242007,0.4276,3427.6,3426.0,5.928]
[1754157242214,0.001,3427.9,3427.2,8.69291363]
[1754157242544,0.001,3427.9,3427.3,0.02917748]
[1754157243232,0.001,3427.9,3427.2,8.69291363]
[1754157243432,0.001,3427.9,3427.3,0.57917748]
[1754157243837,0.001,3428.3,3428.1,8.69291363]
[1754157244034,0.001,3428.3,3428.2,0.02916982]
[1754157244240,0.001,3428.3,3427.9,0.55]
[1754157244562,0.001,3428.3,3427.8,0.1456]
[1754157244770,0.001,3428.3,3427.7,14.66091363]
[1754157244968,1.021,3428.2,3427.7,5.968]
[1754157245131,1.021,3428.1,3427.7,5.968]
[1754157245329,0.001,3428.3,3427.7,5.968]
[1754157245567,0.001,3428.3,3427.8,0.02917323]
[1754157245980,0.001,3428.3,3427.7,5.968]
[1754157246267,0.001,3428.3,3427.8,0.57917323]
[1754157246472,0.001,3428.3,3427.7,5.968]
[1754157247057,0.001,3428.3,3427.8,0.02917323]
[1754157247358,0.001,3428.3,3426.9,8.671592]
[1754157247679,1.021,3428.2,3427.0,5.948]
[1754157247973,1.021,3428.2,3427.1,0.02917918]
[1754157248169,1.021,3428.2,3427.0,6.0936]
[1754157248380,1.021,3428.2,3427.1,0.02917918]
[1754157249476,1.021,3428.2,3427.0,0.1456]
[1754157249629,1.021,3428.2,3427.1,5.929]
[1754157250065,1.021,3428.1,3427.2,5.915]
[1754157251232,1.021,3428.1,3427.3,0.02917748]
[1754157251432,1.021,3428.1,3427.2,5.915]
[1754157251868,1.021,3428.1,3427.3,0.02917748]
[1754157252084,0.001,3428.2,3427.6,8.671592]
[1754157252386,0.001,3428.2,3427.7,5.898]
[1754157252752,0.4276,3428.1,3427.7,5.898]
[1754157253077,1.021,3428.0,3427.8,5.888]
[1754157253280,1.021,3427.9,3427.5,5.888]
[1754157253487,1.021,3427.8,3427.5,5.888]
[1754157253652,0.5934,3428.1,3427.5,5.888]
[1754157254990,0.001,3428.2,3427.7,8.671592]
[1754157255192,0.001,3428.2,3427.8,0.02917323]
[1754157255847,0.001,3428.2,3427.7,8.817192]
[1754157256246,0.001,3428.2,3427.7,8.671592]
[1754157256651,0.001,3428.2,3427.8,5.864]
[1754157256848,0.001,3428.2,3427.9,0.02917237]
[1754157257067,0.001,3428.2,3427.8,5.864]
[1754157257266,0.4276,3428.1,3427.7,8.671592]
[1754157257466,0.001,3428.2,3427.9,5.849]
[1754157257696,0.001,3428.2,3428.0,0.02917152]
[1754157257896,0.001,3428.2,3427.9,5.849]
[1754157258597,0.001,3428.2,3428.0,0.02917152]
[1754157258800,0.001,3428.2,3427.9,5.9946]
[1754157259766,1.021,3428.1,3427.9,0.1456]
[1754157259971,1.021,3428.0,3427.9,0.1456]
[1754157260204,1.021,3428.0,3426.6,15.690592]
[1754157260508,1.021,3427.9,3426.7,5.823]
[1754157260880,0.001,3428.2,3426.6,15.836192]
[1754157260881,1.021,3427.8,3426.8,8.67167624]
[1754157261089,0.001,3428.2,3426.8,8.67167624]
[1754157261090,1.021,3427.7,3426.8,13.36369988]
[1754157261274,1.021,3427.7,3426.9,0.02918089]
[1754157261471,1.021,3428.1,3427.3,7.54669988]
[1754157261713,1.021,3428.1,3427.4,5.81]
[1754157261867,1.021,3428.1,3427.5,0.02917578]
[1754157262202,1.021,3428.1,3427.4,5.81]
[1754157262366,0.001,3428.2,3427.8,7.54669988]
[1754157262568,0.001,3428.2,3427.9,5.83417237]
[1754157262792,0.9828,3428.1,3427.8,5.805]
[1754157263009,0.9828,3428.0,3427.8,5.805]
[1754157263383,0.9828,3427.9,3427.8,5.805]
[1754157264093,0.001,3428.2,3427.8,5.805]
[1754157264429,0.9838,3428.2,3427.8,13.35169988]
[1754157264727,0.001,3428.2,3427.9,0.02917237]
[1754157265858,0.4447,3428.2,3427.8,13.35169988]
[1754157265998,0.9838,3428.2,3427.8,13.35169988]
[1754157266195,0.001,3428.2,3427.9,0.02917237]
[1754157266734,0.001,3428.2,3428.0,5.772]
[1754157268246,0.001,3428.2,3428.1,5.759]
[1754157268389,0.001,3428.2,3428.1,5.754]
[1754157269036,0.9838,3428.2,3428.0,5.754]
[1754157269193,0.9828,3428.1,3427.1,0.1456]
[1754157269394,0.9828,3428.1,3427.4,7.54669988]
[1754157270231,0.4437,3428.1,3427.5,5.741]
[1754157270431,0.5391,3428.0,3427.5,5.741]
[1754157270643,0.4437,3428.0,3427.6,0.02917493]
[1754157270955,0.001,3428.2,3427.5,5.741]
[1754157271172,0.9838,3428.2,3427.5,5.741]
[1754157271378,0.9828,3428.1,3427.4,7.54669988]
[1754157271670,0.9828,3428.0,3427.6,5.729]
[1754157271972,0.9828,3427.9,3427.6,5.729]
[1754157272151,0.9828,3427.8,3427.1,0.002]
[1754157272362,0.9828,3427.7,3427.5,0.002]
[1754157272674,0.9828,3427.6,3427.5,0.002]
[1754157273393,0.001,3428.2,3427.5,0.002]
[1754157273394,0.9828,3427.9,3427.5,0.002]
[1754157274055,0.9828,3427.8,3427.5,0.002]
[1754157274234,0.001,3428.2,3427.5,0.002]
[1754157274235,0.9828,3427.7,3427.5,0.002]
[1754157274435,0.9828,3427.6,3427.5,0.002]
[1754157275722,0.001,3428.2,3427.5,0.002]
[1754157275931,0.5401,3428.2,3427.5,7.54869988]
[1754157276132,0.5391,3428.1,3427.5,13.23769988]
[1754157276337,0.4437,3428.0,3427.5,0.002]
[1754157276639,0.4437,3428.0,3427.1,0.002]
[1754157276833,30.56832182,3427.9,3425.5,7.54669988]
[1754157277035,0.001,3428.2,3425.5,7.54669988]
[1754157277036,3.0,3427.6,3425.6,5.691]
[1754157277235,5.692,3428.2,3425.4,7.54669988]
[1754157277236,30.0,3427.3,3425.4,7.54669988]
[1754157277479,5.692,3428.2,3425.4,7.54669988]
[1754157277480,30.0,3427.1,3425.4,7.54669988]
[1754157277649,0.9828,3427.0,3425.9,7.54669988]
[1754157277853,3.0,3428.1,3425.9,7.54669988]
[1754157278064,0.9828,3426.9,3425.0,0.002]
[1754157278358,0.9828,3426.9,3425.2,7.54669988]
[1754157278671,0.9828,3426.8,3425.7,7.54669988]
[1754157278870,0.32122182,3428.0,3425.7,7.54669988]
[1754157279072,0.9828,3426.7,3425.7,7.54669988]
[1754157279274,0.5391,3426.6,3425.7,7.54669988]
[1754157279866,0.4437,3426.5,3425.2,0.1456]
[1754157280162,0.4437,3426.5,3425.5,7.54669988]
[1754157280352,0.4437,3426.5,3425.6,0.02919196]
[1754157281019,0.5391,3426.6,3426.0,7.54669988]
[1754157281291,0.9828,3427.1,3426.0,5.661]
[1754157281494,0.5391,3427.5,3426.5,7.54669988]
[1754157281788,0.4437,3427.6,3426.6,13.20769988]
[1754157282136,0.4437,3427.6,3426.7,0.01454014]
[1754157282363,0.4437,3427.6,3426.7,0.01453928]
[1754157283178,0.001,3428.2,3427.1,7.54669988]
[1754157283179,0.4437,3428.1,3427.1,7.54669988]
[1754157283380,0.4437,3428.1,3427.2,5.66452949]
[1754157283543,0.4437,3428.1,3427.3,0.01452822]
[1754157283743,0.001,3428.2,3427.2,5.65]
[1754157284046,0.001,3428.2,3427.3,0.01452736]
[1754157284579,0.001,3428.2,3427.6,7.54669988]
[1754157284787,0.001,3428.2,3428.1,7.54669988]
[1754157285085,0.001,3428.3,3428.1,7.54669988]
[1754157285288,0.001,3428.3,3428.2,0.01451503]
[1754157285586,0.001,3428.3,3428.2,5.633]
[1754157285972,0.4437,3430.2,3428.3,0.55]
[1754157286157,0.5391,3429.9,3429.3,7.54669988]
[1754157286344,0.4437,3430.2,3429.4,0.01448611]
[1754157286854,0.4437,3430.2,3429.8,7.54669988]
[1754157287184,0.4437,3430.7,3429.8,13.17169988]
[1754157287396,0.5391,3430.6,3429.3,7.54669988]
[1754157287608,0.4437,3430.5,3429.4,5.621]
[1754157287900,0.5391,3430.4,3429.4,5.621]
[1754157288045,0.4437,3430.3,3429.1,5.617]
[1754157288382,0.5391,3430.2,3429.2,5.617]
[1754157288553,0.4437,3430.1,3429.2,5.617]
[1754157288756,0.5391,3430.0,3429.1,5.612]
[1754157288987,0.4437,3429.9,3429.1,5.612]
[1754157289284,0.5391,3429.8,3429.1,5.612]
[1754157289582,0.4437,3429.7,3428.2,7.68365229]
[1754157289886,0.5391,3429.6,3428.3,5.606]
[1754157290086,0.5391,3429.6,3428.4,0.01450141]
[1754157290272,0.5391,3429.6,3428.3,5.606]
[1754157290273,0.4437,3429.5,3428.3,5.606]
[1754157290468,0.4437,3429.5,3428.2,7.53805229]
[1754157290649,0.5391,3429.4,3428.3,5.597]
[1754157290844,0.4437,3429.3,3428.2,5.597]
[1754157291096,0.5391,3429.2,3428.2,5.597]
[1754157291241,0.4437,3429.1,3428.2,5.597]
[1754157291447,0.5391,3429.0,3428.2,5.597]
[1754157291854,0.4437,3428.9,3427.7,14.55405229]
[1754157292055,0.5584,3428.8,3427.8,5.586]
[1754157292257,0.467,3428.7,3427.8,5.586]
[1754157293761,0.467,3428.7,3427.7,14.55405229]
[1754157293948,0.5584,3428.6,3427.7,14.55405229]
[1754157294148,0.5584,3428.6,3427.8,5.565]
[1754157294966,0.5584,3428.6,3427.7,7.53805229]
[1754157295171,0.5584,3428.6,3427.8,0.002]
[1754157296596,0.5584,3428.6,3427.8,0.01651673]
[1754157296894,0.5584,3429.0,3427.8,0.002]
[1754157297097,0.467,3428.7,3427.8,0.01651332]
[1754157297685,0.467,3428.7,3427.8,0.002]
[1754157298401,0.5584,3428.6,3427.8,0.01651587]
[1754157298603,0.5584,3428.6,3427.8,0.002]
[1754157298900,0.467,3428.5,3427.8,0.002]
[1754157299266,0.5584,3428.4,3427.8,0.002]
[1754157300068,30.467,3428.3,3427.8,0.002]
[1754157300369,0.467,3428.3,3427.8,0.002]
[1754157300708,1.0254,3428.2,3427.8,0.002]
[1754157301062,1.0254,3428.1,3427.8,0.002]
[1754157301465,1.0254,3428.6,3428.0,7.53805229]
[1754157301714,1.0254,3428.5,3427.8,0.002]
[1754157301869,30.0,3428.4,3427.8,0.002]
[1754157302069,1.0254,3428.4,3427.8,0.002]
[1754157302269,1.0254,3428.3,3427.8,0.002]
[1754157302472,1.0254,3428.3,3426.8,0.01452267]
[1754157302726,30.0,3428.1,3425.8,7.53805229]
[1754157303011,1.0254,3428.0,3426.4,7.53805229]
[1754157303179,5.503,3428.5,3426.5,0.01453928]
[1754157303180,1.0254,3427.9,3426.5,0.01453928]
[1754157303595,7.015,3428.6,3426.5,0.01453928]
[1754157303596,1.0254,3427.8,3426.5,0.01453928]
[1754157303782,1.0254,3427.8,3426.9,7.53805229]
[1754157303994,1.0254,3427.8,3427.0,0.0145346]
[1754157304304,0.5584,3428.2,3427.5,7.53805229]
[1754157304509,0.5584,3428.2,3427.6,0.01452354]
[1754157305224,1.0254,3428.7,3428.0,7.53805229]
[1754157305379,1.0254,3429.1,3428.0,7.53805229]
[1754157305578,1.0254,3429.1,3428.1,0.01450949]
[1754157306010,1.0254,3429.1,3428.0,7.53805229]
[1754157306216,1.0254,3429.1,3428.1,0.01450949]
[1754157306728,1.0254,3429.1,3428.5,7.53805229]
[1754157306886,0.467,3429.5,3428.6,0.01450312]
[1754157307083,1.0254,3429.5,3428.6,0.01449886]
[1754157307496,1.0254,3429.5,3428.5,7.53805229]
[1754157307684,1.0254,3429.5,3428.6,5.48949886]
[1754157308012,1.0254,3430.0,3429.0,7.53805229]
[1754157308335,1.0254,3430.5,3429.5,7.53805229]
[1754157308481,1.0254,3431.0,3429.6,3.01448356]
[1754157308805,1.0254,3431.5,3430.8,7.53805229]
[1754157309006,0.5584,3432.0,3431.3,7.53805229]
[1754157309183,0.5584,3432.0,3431.4,0.01444277]
[1754157309623,0.5584,3432.5,3431.4,0.01444192]
[1754157309795,0.5584,3432.5,3431.8,7.53805229]
[1754157309980,0.876449,3432.4,3431.9,0.01443216]
[1754157310321,0.468,3433.1,3432.3,7.53805229]
[1754157310897,0.5584,3433.0,3432.4,0.0144241]
[1754157311099,1.1264,3432.7,3432.1,0.01442451]
[1754157311315,0.101,3432.7,3432.1,0.01442451]
[1754157311618,0.101,3432.7,3432.1,0.01442706]
[1754157312021,0.101,3432.7,3432.3,7.53805229]
[1754157312323,0.101,3432.7,3432.4,0.0144241]
[1754157312935,0.101,3432.7,3432.3,7.53805229]
[1754157313150,0.101,3432.7,3432.2,5.454]
[1754157313311,1.1264,3432.7,3432.2,5.454]
[1754157313682,0.101,3432.7,3432.3,0.01442537]
[1754157313948,0.101,3432.7,3432.6,7.53805229]
[1754157314109,0.001,3433.1,3432.6,7.53805229]
[1754157314437,0.001,3433.8,3432.7,5.45841688]
[1754157314651,0.001,3433.8,3433.6,7.53805229]
[1754157314799,0.001,3433.8,3433.7,0.01439822]
[1754157314998,0.001,3433.8,3433.7,0.01439737]
[1754157315232,0.001,3433.8,3433.6,7.53805229]
[1754157315752,0.001,3433.8,3433.7,0.01439822]
[1754157316974,0.001,3434.2,3433.7,5.44039737]
[1754157317960,0.001,3434.2,3433.8,5.42]
[1754157318288,0.001,3434.2,3433.9,0.01439398]
[1754157318793,0.001,3434.2,3433.8,5.5656]
[1754157318794,0.001,3434.2,3434.1,7.53805229]
[1754157319004,0.001,3434.2,3434.1,13.09665229]
[1754157319208,0.001,3434.2,3434.1,13.31287342]
[1754157319504,0.001,3434.2,3434.1,7.68365229]
[1754157319800,0.001,3434.2,3434.1,13.09465229]
[1754157320002,0.001,3434.2,3434.1,12.94905229]
[1754157320707,0.001,3434.2,3434.1,12.94405229]
[1754157321010,0.467,3434.8,3434.2,4.999]
[1754157321209,0.5584,3434.7,3434.3,5.4163821]